[Event "Late-Titled-Tuesday-Blitz-August-29-2023"]
[Site "Chess.com"]
[Date "2023.08.29"]
[Round "9"]
[White "IngOscarArdila"]
[Black "aqibjbutt"]
[Result "1-0"]
[WhiteElo "2305"]
[BlackElo "2008"]
[TimeControl "180+1"]
[EndTime "15:41:07 PDT"]
[Termination "IngOscarArdila won by checkmate"]

1. d4 {[%clk 0:02:54]} 1... d5 {[%clk 0:02:58.8]} 2. c4 {[%clk 0:02:54]} 2...
Nf6 {[%clk 0:02:58.8]} 3. Nc3 {[%clk 0:02:54.5]} 3... c6 {[%clk 0:02:53.7]} 4.
Nf3 {[%clk 0:02:54.9]} 4... dxc4 {[%clk 0:02:47.1]} 5. Bf4 {[%clk 0:02:53.9]}
5... Bf5 {[%clk 0:02:45.6]} 6. e3 {[%clk 0:02:53.6]} 6... e6 {[%clk 0:02:45.7]}
7. Bxc4 {[%clk 0:02:52.9]} 7... Be7 {[%clk 0:02:46.3]} 8. O-O {[%clk 0:02:52.9]}
8... O-O {[%clk 0:02:46.2]} 9. Qe2 {[%clk 0:02:53.4]} 9... Ne4 {[%clk
0:02:36.4]} 10. Ne5 {[%clk 0:02:49.5]} 10... Nd7 {[%clk 0:02:33.1]} 11. f3
{[%clk 0:02:49.4]} 11... Nxc3 {[%clk 0:02:33]} 12. bxc3 {[%clk 0:02:49.9]} 12...
Nxe5 {[%clk 0:02:33.5]} 13. Bxe5 {[%clk 0:02:49.8]} 13... Bd6 {[%clk 0:02:25.6]}
14. Bxd6 {[%clk 0:02:49.6]} 14... Qxd6 {[%clk 0:02:25.5]} 15. e4 {[%clk
0:02:50.1]} 15... Bg6 {[%clk 0:02:25.4]} 16. Rfd1 {[%clk 0:02:50]} 16... Qa3
{[%clk 0:02:13.2]} 17. Rac1 {[%clk 0:02:45.5]} 17... b5 {[%clk 0:02:08.6]} 18.
Bb3 {[%clk 0:02:44.6]} 18... a5 {[%clk 0:02:08.9]} 19. Qd2 {[%clk 0:02:02.9]}
19... a4 {[%clk 0:02:01.1]} 20. Bc2 {[%clk 0:02:03.1]} 20... c5 {[%clk
0:01:21.2]} 21. Bb1 {[%clk 0:01:59.8]} 21... Rfd8 {[%clk 0:01:11.1]} 22. h4
{[%clk 0:01:57.1]} 22... b4 {[%clk 0:00:51.7]} 23. Qe3 {[%clk 0:01:47.3]} 23...
Rxd4 {[%clk 0:00:39.4]} 24. Rxd4 {[%clk 0:01:24.3]} 24... cxd4 {[%clk
0:00:38.9]} 25. Qd2 {[%clk 0:01:24.7]} 25... dxc3 {[%clk 0:00:32.8]} 26. Qe1
{[%clk 0:01:25.1]} 26... Rd8 {[%clk 0:00:21.8]} 27. h5 {[%clk 0:01:24.7]} 27...
Bxh5 {[%clk 0:00:21.3]} 28. Kh2 {[%clk 0:01:22]} 28... Qb2 {[%clk 0:00:17.3]}
29. Qh4 {[%clk 0:01:21]} 29... Bg6 {[%clk 0:00:16]} 30. Qxd8# {[%clk 0:01:20.9]}
1-0

[Event "Late-Titled-Tuesday-Blitz-August-29-2023"]
[Site "Chess.com"]
[Date "2023.08.29"]
[Round "9"]
[White "jinxy2009"]
[Black "bazar-wokzal"]
[Result "0-1"]
[WhiteElo "2344"]
[BlackElo "2551"]
[TimeControl "180+1"]
[EndTime "15:41:08 PDT"]
[Termination "bazar-wokzal won by resignation"]

1. e4 {[%clk 0:03:00.9]} 1... c5 {[%clk 0:02:59.6]} 2. Nf3 {[%clk 0:02:59.7]}
2... d6 {[%clk 0:03:00.1]} 3. d4 {[%clk 0:03:00.3]} 3... cxd4 {[%clk 0:03:00.6]}
4. Nxd4 {[%clk 0:03:01.2]} 4... Nf6 {[%clk 0:03:01.1]} 5. Nc3 {[%clk 0:03:01.9]}
5... g6 {[%clk 0:03:01.2]} 6. Be3 {[%clk 0:03:00.2]} 6... a6 {[%clk 0:03:01]} 7.
f3 {[%clk 0:02:55.7]} 7... Nbd7 {[%clk 0:03:00]} 8. Be2 {[%clk 0:02:54.3]} 8...
Qc7 {[%clk 0:02:58.8]} 9. O-O {[%clk 0:02:50.5]} 9... b5 {[%clk 0:02:56.6]} 10.
a4 {[%clk 0:02:46.5]} 10... b4 {[%clk 0:02:56.4]} 11. Nd5 {[%clk 0:02:47.2]}
11... Nxd5 {[%clk 0:02:55.8]} 12. exd5 {[%clk 0:02:48.1]} 12... Bb7 {[%clk
0:02:55.6]} 13. Nb3 {[%clk 0:02:41.7]} 13... Nf6 {[%clk 0:02:53]} 14. Bd4 {[%clk
0:02:28.5]} 14... Bg7 {[%clk 0:02:52.8]} 15. c4 {[%clk 0:02:19.6]} 15... bxc3
{[%clk 0:02:50]} 16. bxc3 {[%clk 0:02:20.5]} 16... O-O {[%clk 0:02:47.9]} 17. c4
{[%clk 0:02:20.2]} 17... a5 {[%clk 0:02:37.8]} 18. Qd2 {[%clk 0:02:15.2]} 18...
Rfc8 {[%clk 0:02:32]} 19. Rfc1 {[%clk 0:01:55.2]} 19... Nd7 {[%clk 0:02:28.8]}
20. Bxg7 {[%clk 0:01:51.3]} 20... Kxg7 {[%clk 0:02:29.7]} 21. Qd4+ {[%clk
0:01:48.2]} 21... Kg8 {[%clk 0:02:26.3]} 22. Rab1 {[%clk 0:01:44.5]} 22... Ba6
{[%clk 0:02:23]} 23. h4 {[%clk 0:01:37]} 23... Nc5 {[%clk 0:02:21.7]} 24. Nxc5
{[%clk 0:01:33.6]} 24... Qxc5 {[%clk 0:02:21.6]} 25. Qxc5 {[%clk 0:01:30.6]}
25... Rxc5 {[%clk 0:02:22.5]} 26. Rb6 {[%clk 0:01:30.2]} 26... Kf8 {[%clk
0:02:15.4]} 27. Kf2 {[%clk 0:01:30]} 27... Ke8 {[%clk 0:02:08.6]} 28. Ke3 {[%clk
0:01:29.5]} 28... Kd7 {[%clk 0:02:08.1]} 29. Kd4 {[%clk 0:01:29.4]} 29... Kc7
{[%clk 0:02:08.5]} 30. Rcb1 {[%clk 0:01:28]} 30... e5+ {[%clk 0:02:03.4]} 31.
dxe6 {[%clk 0:01:25.8]} 31... fxe6 {[%clk 0:02:04.3]} 32. f4 {[%clk 0:01:04]}
32... Bc8 {[%clk 0:02:03]} 33. Bf3 {[%clk 0:00:57.6]} 33... Ra7 {[%clk
0:02:02.7]} 34. Rc6+ {[%clk 0:00:55]} 34... Rxc6 {[%clk 0:02:01.5]} 35. Bxc6
{[%clk 0:00:38.5]} 35... Kxc6 {[%clk 0:02:01.8]} 36. Rb5 {[%clk 0:00:28.9]}
36... Bd7 {[%clk 0:01:55.1]} 37. g4 {[%clk 0:00:25.7]} 37... Kc7 {[%clk
0:01:55]} 38. Rb2 {[%clk 0:00:23.9]} 38... Bxa4 {[%clk 0:01:55.1]} 39. c5 {[%clk
0:00:24.8]} 39... dxc5+ {[%clk 0:01:50.5]} 40. Kxc5 {[%clk 0:00:25.7]} 40... Bc6
{[%clk 0:01:47.6]} 41. f5 {[%clk 0:00:23.6]} 41... exf5 {[%clk 0:01:47.1]} 42.
gxf5 {[%clk 0:00:24.5]} 42... gxf5 {[%clk 0:01:46.7]} 43. Rg2 {[%clk 0:00:25.2]}
43... a4 {[%clk 0:01:46.8]} 44. Rg7+ {[%clk 0:00:25.6]} 44... Bd7 {[%clk
0:01:47.3]} 45. Rg2 {[%clk 0:00:24.1]} 45... a3 {[%clk 0:01:47.6]} 46. Ra2
{[%clk 0:00:25]} 46... Be6 {[%clk 0:01:47.3]} 47. Kb4 {[%clk 0:00:25.9]} 47...
Bxa2 {[%clk 0:01:46.5]} 0-1

[Event "Late-Titled-Tuesday-Blitz-August-29-2023"]
[Site "Chess.com"]
[Date "2023.08.29"]
[Round "9"]
[White "dennisodessa"]
[Black "ExchangeAB"]
[Result "0-1"]
[WhiteElo "2526"]
[BlackElo "2450"]
[TimeControl "180+1"]
[EndTime "15:41:09 PDT"]
[Termination "ExchangeAB won by resignation"]

1. d4 {[%clk 0:02:59.1]} 1... d5 {[%clk 0:03:00]} 2. c4 {[%clk 0:02:58.5]} 2...
c6 {[%clk 0:03:00.6]} 3. Nf3 {[%clk 0:02:57.7]} 3... Nf6 {[%clk 0:03:00.7]} 4.
Nbd2 {[%clk 0:02:57.7]} 4... Bf5 {[%clk 0:02:59.6]} 5. Nh4 {[%clk 0:02:57.9]}
5... Be6 {[%clk 0:02:54]} 6. e3 {[%clk 0:02:57.9]} 6... g6 {[%clk 0:02:52.7]} 7.
b3 {[%clk 0:02:57.4]} 7... Bg7 {[%clk 0:02:53]} 8. Bb2 {[%clk 0:02:58.1]} 8...
O-O {[%clk 0:02:53.5]} 9. Rc1 {[%clk 0:02:55.7]} 9... a5 {[%clk 0:02:52.1]} 10.
Bd3 {[%clk 0:02:52.7]} 10... Na6 {[%clk 0:02:44.2]} 11. O-O {[%clk 0:02:51.3]}
11... Nb4 {[%clk 0:02:44.2]} 12. Bb1 {[%clk 0:02:51.1]} 12... Bg4 {[%clk
0:02:42.5]} 13. Nhf3 {[%clk 0:02:48.1]} 13... Re8 {[%clk 0:02:34.9]} 14. h3
{[%clk 0:02:41.7]} 14... Bf5 {[%clk 0:02:33.6]} 15. a3 {[%clk 0:02:39.7]} 15...
Bxb1 {[%clk 0:02:28.6]} 16. Rxb1 {[%clk 0:02:37]} 16... Na6 {[%clk 0:02:17.6]}
17. Qe2 {[%clk 0:02:32.2]} 17... e6 {[%clk 0:02:10.4]} 18. Rfd1 {[%clk
0:02:14.8]} 18... Nb8 {[%clk 0:02:10.6]} 19. e4 {[%clk 0:02:09.8]} 19... dxe4
{[%clk 0:02:10.1]} 20. Nxe4 {[%clk 0:02:10.7]} 20... Nxe4 {[%clk 0:02:10.2]} 21.
Qxe4 {[%clk 0:02:11.3]} 21... Nd7 {[%clk 0:02:11.1]} 22. Bc3 {[%clk 0:02:10.3]}
22... Nf6 {[%clk 0:02:10.9]} 23. Qh4 {[%clk 0:02:10.8]} 23... Nh5 {[%clk
0:02:05]} 24. Qxd8 {[%clk 0:02:09]} 24... Rexd8 {[%clk 0:02:05.9]} 25. g3 {[%clk
0:02:02.7]} 25... Nf6 {[%clk 0:02:05.5]} 26. Kf1 {[%clk 0:01:54]} 26... Ne4
{[%clk 0:02:04.8]} 27. Bb2 {[%clk 0:01:51.7]} 27... b5 {[%clk 0:01:44.4]} 28.
Re1 {[%clk 0:01:47.1]} 28... Nd6 {[%clk 0:01:43.5]} 29. Ne5 {[%clk 0:01:43.4]}
29... Bxe5 {[%clk 0:01:40]} 30. dxe5 {[%clk 0:01:44.3]} 30... Nf5 {[%clk
0:01:39.5]} 31. g4 {[%clk 0:01:35.5]} 31... Nd4 {[%clk 0:01:27.6]} 32. Bc3
{[%clk 0:01:12.8]} 32... Nc2 {[%clk 0:01:14.9]} 33. Rec1 {[%clk 0:01:05.6]}
33... Nxa3 {[%clk 0:01:14.4]} 34. Ra1 {[%clk 0:01:06.1]} 34... b4 {[%clk
0:01:13.5]} 35. Bb2 {[%clk 0:01:06.7]} 35... Rd3 {[%clk 0:01:09]} 36. Bxa3
{[%clk 0:01:06.7]} 36... bxa3 {[%clk 0:01:09.9]} 37. Rxa3 {[%clk 0:01:07.5]}
37... Rxh3 {[%clk 0:01:08.5]} 38. Rca1 {[%clk 0:01:08]} 38... Rb8 {[%clk
0:01:08]} 39. Rxa5 {[%clk 0:01:06.7]} 39... Rbxb3 {[%clk 0:01:02]} 40. Rc5
{[%clk 0:00:58.4]} 40... Rh1+ {[%clk 0:01:00.9]} 0-1

[Event "Late-Titled-Tuesday-Blitz-August-29-2023"]
[Site "Chess.com"]
[Date "2023.08.29"]
[Round "9"]
[White "ckgchess"]
[Black "BlackBoarder"]
[Result "1-0"]
[WhiteElo "2886"]
[BlackElo "2740"]
[TimeControl "180+1"]
[EndTime "15:41:11 PDT"]
[Termination "ckgchess won by resignation"]

1. e4 {[%clk 0:03:00.9]} 1... e6 {[%clk 0:02:56.4]} 2. d4 {[%clk 0:03:00.1]}
2... d5 {[%clk 0:02:56.9]} 3. Nc3 {[%clk 0:03:00.8]} 3... Bb4 {[%clk 0:02:57.4]}
4. e5 {[%clk 0:03:00.1]} 4... Ne7 {[%clk 0:02:57.7]} 5. a3 {[%clk 0:03:00.3]}
5... Bxc3+ {[%clk 0:02:57.7]} 6. bxc3 {[%clk 0:03:01.2]} 6... c5 {[%clk
0:02:58.4]} 7. Qg4 {[%clk 0:02:59.5]} 7... O-O {[%clk 0:02:58.8]} 8. Bd3 {[%clk
0:02:59.3]} 8... f5 {[%clk 0:02:58.9]} 9. exf6 {[%clk 0:02:50.5]} 9... Rxf6
{[%clk 0:02:59.1]} 10. Bg5 {[%clk 0:02:48.7]} 10... Rf7 {[%clk 0:02:58]} 11. Nf3
{[%clk 0:02:48.3]} 11... e5 {[%clk 0:02:52.8]} 12. Bxh7+ {[%clk 0:02:19.7]}
12... Kxh7 {[%clk 0:02:47.7]} 13. Qh4+ {[%clk 0:02:20.2]} 13... Kg8 {[%clk
0:02:47.4]} 14. Nxe5 {[%clk 0:02:20.7]} 14... Nbc6 {[%clk 0:02:25.9]} 15. Qh8+
{[%clk 0:02:14.2]} 15... Kxh8 {[%clk 0:02:23.2]} 16. Nxf7+ {[%clk 0:02:15.1]}
16... Kg8 {[%clk 0:02:22.2]} 17. Nxd8 {[%clk 0:02:16]} 17... cxd4 {[%clk
0:02:13.7]} 18. Nxc6 {[%clk 0:02:13.1]} 18... Nxc6 {[%clk 0:02:13.1]} 19. cxd4
{[%clk 0:02:09]} 19... Nxd4 {[%clk 0:02:13.1]} 20. O-O-O {[%clk 0:02:06.9]}
20... Nb5 {[%clk 0:01:08.1]} 21. Rxd5 {[%clk 0:02:05.5]} 21... Nxa3 {[%clk
0:01:07.9]} 22. Rd8+ {[%clk 0:02:03.2]} 22... Kf7 {[%clk 0:01:07.1]} 23. Re1
{[%clk 0:02:03.6]} 23... Nc4 {[%clk 0:00:41.2]} 24. Re7+ {[%clk 0:01:52.9]}
24... Kg6 {[%clk 0:00:40.2]} 25. Rc7 {[%clk 0:01:53.3]} 25... Nb6 {[%clk
0:00:24.9]} 26. Be3 {[%clk 0:01:38.9]} 26... Bf5 {[%clk 0:00:22.5]} 27. Rxa8
{[%clk 0:01:34.5]} 27... Nxa8 {[%clk 0:00:22.4]} 28. Rxb7 {[%clk 0:01:34.9]}
28... Be4 {[%clk 0:00:21.3]} 29. Rxa7 {[%clk 0:01:34.2]} 29... Bxg2 {[%clk
0:00:21.4]} 30. Bd4 {[%clk 0:01:34.6]} 30... Kf5 {[%clk 0:00:20.2]} 31. Rxg7
{[%clk 0:01:34.7]} 31... Be4 {[%clk 0:00:20.8]} 32. c3 {[%clk 0:01:31.6]} 32...
Ke6 {[%clk 0:00:11.5]} 33. Kd2 {[%clk 0:01:30.9]} 1-0

[Event "Late-Titled-Tuesday-Blitz-August-29-2023"]
[Site "Chess.com"]
[Date "2023.08.29"]
[Round "9"]
[White "KrokerGuy"]
[Black "Garmendiarov"]
[Result "1-0"]
[WhiteElo "2512"]
[BlackElo "2338"]
[TimeControl "180+1"]
[EndTime "15:41:22 PDT"]
[Termination "KrokerGuy won by resignation"]

1. e4 {[%clk 0:03:00.9]} 1... c5 {[%clk 0:02:59.7]} 2. Nf3 {[%clk 0:03:01.1]}
2... d6 {[%clk 0:03:00.3]} 3. d4 {[%clk 0:03:01.8]} 3... cxd4 {[%clk 0:03:01.2]}
4. Nxd4 {[%clk 0:03:02.7]} 4... Nf6 {[%clk 0:03:01.6]} 5. Nc3 {[%clk 0:03:03.5]}
5... a6 {[%clk 0:03:02.3]} 6. Bg5 {[%clk 0:03:03.8]} 6... e6 {[%clk 0:03:02.6]}
7. f4 {[%clk 0:03:04.5]} 7... Be7 {[%clk 0:03:03.1]} 8. Qf3 {[%clk 0:03:05.1]}
8... Qc7 {[%clk 0:03:03.8]} 9. O-O-O {[%clk 0:03:05.6]} 9... Nbd7 {[%clk
0:03:04.3]} 10. g4 {[%clk 0:03:06.3]} 10... h6 {[%clk 0:03:04.1]} 11. Bxf6
{[%clk 0:03:06.3]} 11... Bxf6 {[%clk 0:03:05]} 12. h4 {[%clk 0:03:06.5]} 12...
Nb6 {[%clk 0:03:04.9]} 13. g5 {[%clk 0:03:06.4]} 13... Bxd4 {[%clk 0:03:04.4]}
14. Rxd4 {[%clk 0:03:06.7]} 14... Qc5 {[%clk 0:03:05.1]} 15. Rd2 {[%clk
0:02:59.3]} 15... Bd7 {[%clk 0:03:02.5]} 16. Be2 {[%clk 0:02:37.7]} 16... O-O-O
{[%clk 0:03:00.6]} 17. Rhd1 {[%clk 0:02:38.2]} 17... Bc6 {[%clk 0:02:51.9]} 18.
f5 {[%clk 0:02:30.3]} 18... hxg5 {[%clk 0:02:14.6]} 19. hxg5 {[%clk 0:02:31.2]}
19... Qe5 {[%clk 0:01:51.3]} 20. Bd3 {[%clk 0:01:56.6]} 20... Rh4 {[%clk
0:01:28.6]} 21. Qf2 {[%clk 0:01:43.3]} 21... Qf4 {[%clk 0:00:39.1]} 22. Qxb6
{[%clk 0:01:40.9]} 22... Rh2 {[%clk 0:00:37.3]} 23. Bxa6 {[%clk 0:01:31.4]}
23... Kd7 {[%clk 0:00:10]} 24. Bxb7 {[%clk 0:01:28.5]} 24... Bxb7 {[%clk
0:00:09.6]} 25. Qxb7+ {[%clk 0:01:29.4]} 25... Ke8 {[%clk 0:00:10]} 26. fxe6
{[%clk 0:01:27.2]} 26... fxe6 {[%clk 0:00:09.3]} 27. Qxg7 {[%clk 0:01:26.6]}
27... d5 {[%clk 0:00:08.5]} 28. exd5 {[%clk 0:01:17.8]} 28... Rxd2 {[%clk
0:00:08.2]} 29. Rxd2 {[%clk 0:01:16.4]} 29... Qf1+ {[%clk 0:00:08.5]} 30. Rd1
{[%clk 0:01:16.8]} 30... Qf4+ {[%clk 0:00:08.6]} 31. Kb1 {[%clk 0:01:17.5]}
31... exd5 {[%clk 0:00:07.6]} 32. Re1+ {[%clk 0:01:16]} 1-0

[Event "Late-Titled-Tuesday-Blitz-August-29-2023"]
[Site "Chess.com"]
[Date "2023.08.29"]
[Round "9"]
[White "mc4chess"]
[Black "PNEPaul"]
[Result "1-0"]
[WhiteElo "2628"]
[BlackElo "1889"]
[TimeControl "180+1"]
[EndTime "15:41:23 PDT"]
[Termination "mc4chess won by resignation"]

1. c4 {[%clk 0:02:33.1]} 1... a6 {[%clk 0:02:59.3]} 2. Nc3 {[%clk 0:02:32.2]}
2... d6 {[%clk 0:02:59.6]} 3. g3 {[%clk 0:02:31.6]} 3... g6 {[%clk 0:02:59.8]}
4. Bg2 {[%clk 0:02:32]} 4... Bg7 {[%clk 0:03:00]} 5. Nf3 {[%clk 0:02:32.6]} 5...
h6 {[%clk 0:03:00.3]} 6. O-O {[%clk 0:02:33.1]} 6... Nd7 {[%clk 0:03:00.2]} 7.
d4 {[%clk 0:02:33.4]} 7... e5 {[%clk 0:03:00.2]} 8. e4 {[%clk 0:02:32.8]} 8...
Ne7 {[%clk 0:02:59.6]} 9. Re1 {[%clk 0:02:32.7]} 9... O-O {[%clk 0:02:59.4]} 10.
Be3 {[%clk 0:02:31.2]} 10... Kh7 {[%clk 0:02:58.2]} 11. Qc2 {[%clk 0:02:19.6]}
11... c6 {[%clk 0:02:58]} 12. Rad1 {[%clk 0:02:19.4]} 12... Qe8 {[%clk
0:02:53.8]} 13. b4 {[%clk 0:02:12.5]} 13... f5 {[%clk 0:02:50.9]} 14. dxe5
{[%clk 0:02:11.7]} 14... Nxe5 {[%clk 0:02:48.4]} 15. Nxe5 {[%clk 0:02:10.9]}
15... dxe5 {[%clk 0:02:48.2]} 16. Bb6 {[%clk 0:02:04.2]} 16... Be6 {[%clk
0:02:42.6]} 17. Na4 {[%clk 0:02:04]} 17... Qf7 {[%clk 0:02:32.5]} 18. Nc5 {[%clk
0:01:57.2]} 18... Bxc4 {[%clk 0:02:24.7]} 19. Rd7 {[%clk 0:01:55.5]} 19... Bxa2
{[%clk 0:02:11.4]} 20. Rxe7 {[%clk 0:01:54.9]} 20... Qxe7 {[%clk 0:02:06.4]} 21.
Qxa2 {[%clk 0:01:54.7]} 21... f4 {[%clk 0:01:52.6]} 22. Rd1 {[%clk 0:01:47.5]}
22... Qf7 {[%clk 0:01:42.2]} 23. Qc2 {[%clk 0:01:34.3]} 23... Rfe8 {[%clk
0:01:28.1]} 24. Bf1 {[%clk 0:01:31.8]} 24... fxg3 {[%clk 0:01:14.7]} 25. hxg3
{[%clk 0:01:31.2]} 25... Qf3 {[%clk 0:01:03.5]} 26. Be2 {[%clk 0:01:30.5]} 26...
Qa3 {[%clk 0:01:01.2]} 27. Qc4 {[%clk 0:01:25.9]} 27... Re7 {[%clk 0:00:55.1]}
28. Rd3 {[%clk 0:01:11.9]} 28... Qa1+ {[%clk 0:00:52.9]} 29. Kg2 {[%clk
0:01:06.8]} 29... Rf8 {[%clk 0:00:52.3]} 30. Ne6 {[%clk 0:01:02.3]} 30... Rff7
{[%clk 0:00:51]} 31. Bc5 {[%clk 0:01:00.9]} 31... Qe1 {[%clk 0:00:42.9]} 32. Rf3
{[%clk 0:00:56.6]} 32... Rxf3 {[%clk 0:00:36.4]} 33. Bxf3 {[%clk 0:00:57.5]}
33... Rf7 {[%clk 0:00:35.8]} 34. Ng5+ {[%clk 0:00:56.4]} 34... hxg5 {[%clk
0:00:33.2]} 35. Qxf7 {[%clk 0:00:56.3]} 1-0

[Event "Late-Titled-Tuesday-Blitz-August-29-2023"]
[Site "Chess.com"]
[Date "2023.08.29"]
[Round "9"]
[White "jcmesafischer"]
[Black "Ramosha"]
[Result "0-1"]
[WhiteElo "2476"]
[BlackElo "2645"]
[TimeControl "180+1"]
[EndTime "15:41:31 PDT"]
[Termination "Ramosha won by checkmate"]

1. Nf3 {[%clk 0:02:56.1]} 1... Nf6 {[%clk 0:02:59.9]} 2. g3 {[%clk 0:02:56.1]}
2... d5 {[%clk 0:02:58.9]} 3. Bg2 {[%clk 0:02:55.8]} 3... g6 {[%clk 0:02:59.3]}
4. O-O {[%clk 0:02:55.3]} 4... Bg7 {[%clk 0:02:59.7]} 5. d3 {[%clk 0:02:54.9]}
5... O-O {[%clk 0:03:00]} 6. c3 {[%clk 0:02:47.2]} 6... c5 {[%clk 0:03:00]} 7.
Nbd2 {[%clk 0:02:46.9]} 7... Bf5 {[%clk 0:02:59.3]} 8. Re1 {[%clk 0:02:42.3]}
8... Nc6 {[%clk 0:02:58.9]} 9. Qb3 {[%clk 0:02:41.2]} 9... Qb6 {[%clk
0:02:58.3]} 10. e4 {[%clk 0:02:38.8]} 10... Qxb3 {[%clk 0:02:58.2]} 11. Nxb3
{[%clk 0:02:33.4]} 11... dxe4 {[%clk 0:02:56.9]} 12. dxe4 {[%clk 0:02:33.5]}
12... Nxe4 {[%clk 0:02:56.5]} 13. Nh4 {[%clk 0:02:32.9]} 13... c4 {[%clk
0:02:47.4]} 14. Nxf5 {[%clk 0:02:18.8]} 14... gxf5 {[%clk 0:02:47.3]} 15. Be3
{[%clk 0:02:15.4]} 15... cxb3 {[%clk 0:02:46.7]} 16. axb3 {[%clk 0:01:45.3]}
16... a6 {[%clk 0:02:46.1]} 17. g4 {[%clk 0:01:42]} 17... Nd6 {[%clk 0:02:44.3]}
18. Bc5 {[%clk 0:01:40.9]} 18... Rfe8 {[%clk 0:02:37.7]} 19. h3 {[%clk
0:01:29.5]} 19... fxg4 {[%clk 0:02:36]} 20. hxg4 {[%clk 0:01:30.4]} 20... Rac8
{[%clk 0:02:34.5]} 21. b4 {[%clk 0:01:30]} 21... Nc4 {[%clk 0:02:32.9]} 22. Re2
{[%clk 0:01:27.1]} 22... e6 {[%clk 0:02:27.1]} 23. f4 {[%clk 0:01:25.6]} 23...
b6 {[%clk 0:02:23.6]} 24. Bxc6 {[%clk 0:01:09.8]} 24... Rxc6 {[%clk 0:02:23.5]}
25. Rxa6 {[%clk 0:01:10.5]} 25... Rec8 {[%clk 0:02:19.6]} 26. Bf2 {[%clk
0:01:10.2]} 26... b5 {[%clk 0:02:15]} 27. Ra7 {[%clk 0:01:08.2]} 27... R6c7
{[%clk 0:02:12.9]} 28. Ra6 {[%clk 0:01:06.9]} 28... h6 {[%clk 0:02:12.6]} 29.
Kg2 {[%clk 0:01:06.5]} 29... Rd7 {[%clk 0:02:11.6]} 30. Be1 {[%clk 0:01:01.9]}
30... Rcd8 {[%clk 0:01:56]} 31. f5 {[%clk 0:01:02.2]} 31... exf5 {[%clk
0:01:54.7]} 32. gxf5 {[%clk 0:01:02.1]} 32... Rd6 {[%clk 0:01:55.2]} 33. Ra7
{[%clk 0:01:00.8]} 33... Bf6 {[%clk 0:01:55]} 34. Rb7 {[%clk 0:00:59.5]} 34...
Rd5 {[%clk 0:01:53.8]} 35. b3 {[%clk 0:00:54.4]} 35... Nd6 {[%clk 0:01:51.2]}
36. Rb6 {[%clk 0:00:49]} 36... Rxf5 {[%clk 0:01:50]} 37. Bg3 {[%clk 0:00:48.1]}
37... Nc8 {[%clk 0:01:46.5]} 38. Rc6 {[%clk 0:00:38.5]} 38... Ne7 {[%clk
0:01:39.8]} 39. Rxf6 {[%clk 0:00:38.2]} 39... Rxf6 {[%clk 0:01:39.9]} 40. Rxe7
{[%clk 0:00:38.8]} 40... Rd2+ {[%clk 0:01:40.1]} 41. Kh3 {[%clk 0:00:38.7]}
41... Rd3 {[%clk 0:01:40.4]} 42. Kh4 {[%clk 0:00:35.5]} 42... Re6 {[%clk
0:01:38.7]} 43. Rc7 {[%clk 0:00:33.3]} 43... Re4+ {[%clk 0:01:37.5]} 44. Kh5
{[%clk 0:00:23.4]} 44... Rxg3 {[%clk 0:01:36.8]} 45. Kxh6 {[%clk 0:00:20.1]}
45... Rh4# {[%clk 0:01:36.5]} 0-1

[Event "Late-Titled-Tuesday-Blitz-August-29-2023"]
[Site "Chess.com"]
[Date "2023.08.29"]
[Round "9"]
[White "Giorno"]
[Black "nitpicker"]
[Result "1-0"]
[WhiteElo "2471"]
[BlackElo "2289"]
[TimeControl "180+1"]
[EndTime "15:41:38 PDT"]
[Termination "Giorno won on time"]

1. d4 {[%clk 0:02:55.6]} 1... Nf6 {[%clk 0:02:59.4]} 2. Nf3 {[%clk 0:02:34.6]}
2... b6 {[%clk 0:02:57.2]} 3. e3 {[%clk 0:02:23.5]} 3... Bb7 {[%clk 0:02:52.6]}
4. c4 {[%clk 0:01:55.4]} 4... e6 {[%clk 0:02:50.7]} 5. a3 {[%clk 0:01:54.1]}
5... c5 {[%clk 0:02:43]} 6. Nc3 {[%clk 0:01:53.7]} 6... cxd4 {[%clk 0:02:27.8]}
7. exd4 {[%clk 0:01:50.9]} 7... d5 {[%clk 0:02:28.4]} 8. cxd5 {[%clk 0:01:48.5]}
8... Nxd5 {[%clk 0:02:27.8]} 9. Bb5+ {[%clk 0:01:49.1]} 9... Bc6 {[%clk
0:01:51.7]} 10. Qa4 {[%clk 0:01:49]} 10... Bxb5 {[%clk 0:01:40]} 11. Qxb5+
{[%clk 0:01:48.2]} 11... Qd7 {[%clk 0:01:33.4]} 12. Qxd7+ {[%clk 0:01:32.6]}
12... Nxd7 {[%clk 0:01:30.5]} 13. Nxd5 {[%clk 0:01:32.9]} 13... exd5 {[%clk
0:01:30.8]} 14. O-O {[%clk 0:01:30.8]} 14... f6 {[%clk 0:01:25.6]} 15. Bf4
{[%clk 0:01:28.8]} 15... Rc8 {[%clk 0:01:11]} 16. Rac1 {[%clk 0:01:26.4]} 16...
Rxc1 {[%clk 0:01:09.3]} 17. Rxc1 {[%clk 0:01:25.2]} 17... Kd8 {[%clk 0:01:02.7]}
18. Rc7 {[%clk 0:01:22.8]} 18... g5 {[%clk 0:00:53]} 19. Bg3 {[%clk 0:01:21.2]}
19... a5 {[%clk 0:00:48.8]} 20. Ra7 {[%clk 0:01:18.4]} 20... Bg7 {[%clk
0:00:48.6]} 21. Bd6 {[%clk 0:01:12.4]} 21... Kc8 {[%clk 0:00:29.8]} 22. Kf1
{[%clk 0:01:07.2]} 22... Bf8 {[%clk 0:00:18.7]} 23. Ra8+ {[%clk 0:00:57.5]}
23... Kb7 {[%clk 0:00:18.7]} 24. Re8 {[%clk 0:00:58.1]} 24... Kc6 {[%clk
0:00:17.3]} 25. Bg3 {[%clk 0:00:56.1]} 25... Bg7 {[%clk 0:00:16.1]} 26. Re6+
{[%clk 0:00:50.8]} 26... Kb5 {[%clk 0:00:14]} 27. Re7 {[%clk 0:00:51.5]} 1-0